[Event "Titled Tuesday Blitz April 12 Early 2022"]
[White "Kakulidis, Ellen"]
[Black "Tan, Jun Ying"]
[WhiteFideId "1444972"]
[BlackFideId "5710413"]
[WhiteElo "1852"]
[BlackElo "1827"]
[Result "0-1"]
[Round "01"]
[TimeControl "180+1"]
[Date "2022.04.13"]
[WhiteClock "0:02:03"]
[BlackClock "0:01:52"]

1. d4 {[%clk 0:02:58]}  Nf6 {[%clk 0:02:59]} 2. c4 {[%clk 0:02:57]}  e6 {[%clk 0:02:59]} 3. Nf3 {[%clk 0:02:56]}  c5 {[%clk 0:02:59]} 4. g3 {[%clk 0:02:53]}  cxd4 {[%clk 0:02:58]} 5. Nxd4 {[%clk 0:02:53]}  d5 {[%clk 0:02:59]} 6. Bg2 {[%clk 0:02:54]}  e5 {[%clk 0:02:58]} 7. Nf3 {[%clk 0:02:54]}  d4 {[%clk 0:02:58]} 8. O-O {[%clk 0:02:53]}  Nc6 {[%clk 0:02:59]} 9. e3 {[%clk 0:02:53]}  Bc5 {[%clk 0:02:59]} 10. exd4 {[%clk 0:02:51]}  exd4 {[%clk 0:03:00]} 11. Re1+ {[%clk 0:02:49]}  Be6 {[%clk 0:03:01]} 12. Ng5 {[%clk 0:02:49]}  O-O {[%clk 0:03:01]} 13. Nxe6 {[%clk 0:02:49]}  fxe6 {[%clk 0:03:02]} 14. Rxe6 {[%clk 0:02:45]}  d3 {[%clk 0:03:02]} 15. Bg5 {[%clk 0:02:42]}  Bxf2+ {[%clk 0:02:29]} 16. Kh1 {[%clk 0:02:31]}  Nd4 {[%clk 0:02:08]} 17. Qxd3 {[%clk 0:02:25]}  Nxe6 {[%clk 0:02:07]} 18. Bd5 {[%clk 0:02:20]}  Kh8 {[%clk 0:01:55]} 19. Qe2 {[%clk 0:02:17]}  Nxg5 {[%clk 0:01:52]} 20. Qxf2 {[%clk 0:02:03]}  Nxd5 {[%clk 0:01:52]} 0-1


[Site "https://www.chess.com"]

[Event "Titled Tuesday Blitz April 12 Early 2022"]
[White "Kamsky, Gata"]
[Black "Przybylski, Wojciech"]
[WhiteFideId "2000024"]
[BlackFideId "1117599"]
[WhiteElo "2858"]
[BlackElo "2460"]
[Result "1/2-1/2"]
[Round "01"]
[TimeControl "180+1"]
[Date "2022.04.13"]
[WhiteClock "0:00:17"]
[BlackClock "0:00:06"]

1. e4 {[%clk 0:03:00]}  e5 {[%clk 0:02:56]} 2. Nf3 {[%clk 0:02:59]}  Nc6 {[%clk 0:02:56]} 3. Bb5 {[%clk 0:02:59]}  Nf6 {[%clk 0:02:55]} 4. O-O {[%clk 0:02:57]}  Nxe4 {[%clk 0:02:53]} 5. d4 {[%clk 0:02:57]}  Nd6 {[%clk 0:02:53]} 6. Bxc6 {[%clk 0:02:54]}  dxc6 {[%clk 0:02:52]} 7. dxe5 {[%clk 0:02:55]}  Nf5 {[%clk 0:02:52]} 8. Qxd8+ {[%clk 0:02:50]}  Kxd8 {[%clk 0:02:53]} 9. Rd1+ {[%clk 0:02:50]}  Ke8 {[%clk 0:02:52]} 10. Nc3 {[%clk 0:02:50]}  h6 {[%clk 0:02:45]} 11. h3 {[%clk 0:02:49]}  Be7 {[%clk 0:02:43]} 12. Bf4 {[%clk 0:02:48]}  Nh4 {[%clk 0:02:32]} 13. Nxh4 {[%clk 0:02:47]}  Bxh4 {[%clk 0:02:31]} 14. g4 {[%clk 0:02:46]}  Be6 {[%clk 0:02:24]} 15. f3 {[%clk 0:02:43]}  Rd8 {[%clk 0:02:20]} 16. Kg2 {[%clk 0:02:42]}  Be7 {[%clk 0:02:01]} 17. b3 {[%clk 0:02:39]}  b6 {[%clk 0:02:00]} 18. Ne2 {[%clk 0:02:21]}  c5 {[%clk 0:01:56]} 19. c4 {[%clk 0:02:20]}  f6 {[%clk 0:01:27]} 20. Nc3 {[%clk 0:02:13]}  h5 {[%clk 0:01:13]} 21. Nb5 {[%clk 0:02:11]}  c6 {[%clk 0:01:03]} 22. Nxa7 {[%clk 0:01:52]}  hxg4 {[%clk 0:00:49]} 23. hxg4 {[%clk 0:01:50]}  Rxd1 {[%clk 0:00:39]} 24. Rxd1 {[%clk 0:01:49]}  Bd7 {[%clk 0:00:34]} 25. e6 {[%clk 0:01:47]}  Bxe6 {[%clk 0:00:34]} 26. Nxc6 {[%clk 0:01:47]}  Kf7 {[%clk 0:00:32]} 27. Nxe7 {[%clk 0:01:42]}  Kxe7 {[%clk 0:00:32]} 28. Bc7 {[%clk 0:01:41]}  Ra8 {[%clk 0:00:31]} 29. Bxb6 {[%clk 0:01:35]}  Rxa2+ {[%clk 0:00:29]} 30. Kg3 {[%clk 0:01:35]}  Rb2 {[%clk 0:00:27]} 31. Bxc5+ {[%clk 0:01:35]}  Kf7 {[%clk 0:00:27]} 32. Rd3 {[%clk 0:01:36]}  f5 {[%clk 0:00:27]} 33. g5 {[%clk 0:01:34]}  Kg6 {[%clk 0:00:24]} 34. Rd6 {[%clk 0:01:28]}  Kf7 {[%clk 0:00:22]} 35. Rb6 {[%clk 0:01:25]}  g6 {[%clk 0:00:18]} 36. Rb7+ {[%clk 0:01:23]}  Kg8 {[%clk 0:00:17]} 37. Re7 {[%clk 0:01:21]}  Bf7 {[%clk 0:00:15]} 38. Re3 {[%clk 0:01:17]}  Rd2 {[%clk 0:00:11]} 39. Kf4 {[%clk 0:01:14]}  Rd8 {[%clk 0:00:11]} 40. Ke5 {[%clk 0:01:12]}  Re8+ {[%clk 0:00:11]} 41. Kd6 {[%clk 0:01:10]}  Rd8+ {[%clk 0:00:10]} 42. Kc7 {[%clk 0:01:09]}  Ra8 {[%clk 0:00:10]} 43. Bd4 {[%clk 0:01:06]}  Ra3 {[%clk 0:00:05]} 44. c5 {[%clk 0:01:02]}  f4 {[%clk 0:00:05]} 45. Rc3 {[%clk 0:01:00]}  Rxb3 {[%clk 0:00:05]} 46. Rxb3 {[%clk 0:00:59]}  Bxb3 {[%clk 0:00:04]} 47. Be5 {[%clk 0:00:54]}  Bd5 {[%clk 0:00:03]} 48. Bxf4 {[%clk 0:00:51]}  Kf7 {[%clk 0:00:04]} 49. c6 {[%clk 0:00:49]}  Ke6 {[%clk 0:00:03]} 50. Kb7 {[%clk 0:00:22]}  Bxf3 {[%clk 0:00:03]} 51. Kb6 {[%clk 0:00:20]}  Be4 {[%clk 0:00:03]} 52. Kc5 {[%clk 0:00:19]}  Bf3 {[%clk 0:00:03]} 53. Kb6 {[%clk 0:00:18]}  Be4 {[%clk 0:00:03]} 54. c7 {[%clk 0:00:18]}  Kd7 {[%clk 0:00:03]} 55. Kc5 {[%clk 0:00:17]}  Kc8 {[%clk 0:00:04]} 56. Kd6 {[%clk 0:00:17]}  Bb1 {[%clk 0:00:04]} 57. Ke7 {[%clk 0:00:17]}  Bc2 {[%clk 0:00:05]} 58. Kf7 {[%clk 0:00:17]}  Bb1 {[%clk 0:00:05]} 59. Ke7 {[%clk 0:00:16]}  Bc2 {[%clk 0:00:05]} 60. Kf7 {[%clk 0:00:16]}  Bb1 {[%clk 0:00:06]} 61. Ke7 {[%clk 0:00:17]} 1/2-1/2


[Site "https://www.chess.com"]

[Event "Titled Tuesday Blitz April 12 Early 2022"]
[White "Kezin, Roman"]
[Black "Vinod, Kumar Sharma"]
[WhiteFideId "24124621"]
[BlackFideId "5013518"]
[WhiteElo "2570"]
[BlackElo "2154"]
[Result "1-0"]
[Round "01"]
[TimeControl "180+1"]
[Date "2022.04.13"]
[WhiteClock "0:00:18"]
[BlackClock "0:00:24"]

1. Nf3 {[%clk 0:03:00]}  Nf6 {[%clk 0:02:57]} 2. b3 {[%clk 0:03:01]}  d5 {[%clk 0:02:56]} 3. Bb2 {[%clk 0:03:01]}  Bf5 {[%clk 0:02:54]} 4. e3 {[%clk 0:03:01]}  e6 {[%clk 0:02:54]} 5. Be2 {[%clk 0:02:57]}  c6 {[%clk 0:02:54]} 6. Nh4 {[%clk 0:02:56]}  Bg6 {[%clk 0:02:53]} 7. O-O {[%clk 0:02:55]}  Nbd7 {[%clk 0:02:53]} 8. c4 {[%clk 0:02:52]}  Bd6 {[%clk 0:02:51]} 9. Nc3 {[%clk 0:02:51]}  a5 {[%clk 0:02:39]} 10. d4 {[%clk 0:02:45]}  Ne4 {[%clk 0:02:29]} 11. g3 {[%clk 0:02:41]}  Ndf6 {[%clk 0:02:20]} 12. Nxg6 {[%clk 0:02:28]}  hxg6 {[%clk 0:02:19]} 13. f3 {[%clk 0:02:23]}  Nxc3 {[%clk 0:02:04]} 14. Bxc3 {[%clk 0:02:23]}  Qc7 {[%clk 0:02:04]} 15. Kg2 {[%clk 0:02:21]}  O-O {[%clk 0:01:54]} 16. Rc1 {[%clk 0:02:14]}  e5 {[%clk 0:01:50]} 17. Qd2 {[%clk 0:01:59]}  e4 {[%clk 0:01:43]} 18. f4 {[%clk 0:01:58]}  Bb4 {[%clk 0:01:38]} 19. Rc2 {[%clk 0:00:59]}  Qe7 {[%clk 0:01:19]} 20. Rfc1 {[%clk 0:00:58]}  Bxc3 {[%clk 0:01:12]} 21. Rxc3 {[%clk 0:00:58]}  a4 {[%clk 0:01:12]} 22. c5 {[%clk 0:00:44]}  axb3 {[%clk 0:00:57]} 23. axb3 {[%clk 0:00:45]}  Ra7 {[%clk 0:00:54]} 24. b4 {[%clk 0:00:44]}  Rfa8 {[%clk 0:00:49]} 25. b5 {[%clk 0:00:44]}  Ne8 {[%clk 0:00:30]} 26. b6 {[%clk 0:00:17]}  Ra2 {[%clk 0:00:28]} 27. R3c2 {[%clk 0:00:17]}  Qd8 {[%clk 0:00:24]} 28. Rxa2 {[%clk 0:00:17]}  Rxa2 {[%clk 0:00:24]} 29. Qxa2 {[%clk 0:00:18]} 1-0


[Site "https://www.chess.com"]

[Event "Titled Tuesday Blitz April 12 Early 2022"]
[White "Kosteniuk, Alexandra"]
[Black "Bowden, Karl"]
[WhiteFideId "4128125"]
[BlackFideId "400548"]
[WhiteElo "2469"]
[BlackElo "2344"]
[Result "0-1"]
[Round "01"]
[TimeControl "180+1"]
[Date "2022.04.13"]
[WhiteClock "0:01:24"]
[BlackClock "0:00:42"]

1. Nf3 {[%clk 0:03:00]}  Nf6 {[%clk 0:02:59]} 2. d4 {[%clk 0:02:59]}  g6 {[%clk 0:02:59]} 3. c4 {[%clk 0:02:57]}  Bg7 {[%clk 0:02:59]} 4. Nc3 {[%clk 0:02:58]}  O-O {[%clk 0:02:58]} 5. e4 {[%clk 0:02:58]}  d6 {[%clk 0:02:59]} 6. Be2 {[%clk 0:02:58]}  e5 {[%clk 0:02:59]} 7. O-O {[%clk 0:02:59]}  Nc6 {[%clk 0:02:59]} 8. d5 {[%clk 0:02:58]}  Ne7 {[%clk 0:02:59]} 9. Qc2 {[%clk 0:02:58]}  Nh5 {[%clk 0:02:53]} 10. Rd1 {[%clk 0:02:55]}  Nf4 {[%clk 0:02:47]} 11. Bxf4 {[%clk 0:02:52]}  exf4 {[%clk 0:02:47]} 12. c5 {[%clk 0:02:51]}  h6 {[%clk 0:02:45]} 13. cxd6 {[%clk 0:02:48]}  cxd6 {[%clk 0:02:45]} 14. Nb5 {[%clk 0:02:48]}  g5 {[%clk 0:02:44]} 15. Qc7 {[%clk 0:02:44]}  Qxc7 {[%clk 0:02:36]} 16. Nxc7 {[%clk 0:02:44]}  Rb8 {[%clk 0:02:35]} 17. Nd4 {[%clk 0:02:44]}  Ng6 {[%clk 0:02:31]} 18. Rac1 {[%clk 0:02:40]}  a6 {[%clk 0:02:17]} 19. b4 {[%clk 0:02:36]}  Bd7 {[%clk 0:01:59]} 20. b5 {[%clk 0:02:36]}  Bxd4 {[%clk 0:01:52]} 21. Rxd4 {[%clk 0:02:36]}  axb5 {[%clk 0:01:52]} 22. Nxb5 {[%clk 0:02:31]}  Bxb5 {[%clk 0:01:49]} 23. Bxb5 {[%clk 0:02:32]}  Rfc8 {[%clk 0:01:47]} 24. Rdc4 {[%clk 0:02:32]}  Rxc4 {[%clk 0:01:45]} 25. Rxc4 {[%clk 0:02:33]}  Ne7 {[%clk 0:01:37]} 26. Rc7 {[%clk 0:02:32]}  Kf8 {[%clk 0:01:37]} 27. f3 {[%clk 0:02:30]}  Rc8 {[%clk 0:01:29]} 28. Rxb7 {[%clk 0:02:29]}  Rc1+ {[%clk 0:01:29]} 29. Bf1 {[%clk 0:02:29]}  f5 {[%clk 0:01:28]} 30. a4 {[%clk 0:02:25]}  fxe4 {[%clk 0:01:28]} 31. fxe4 {[%clk 0:02:26]}  Ra1 {[%clk 0:01:22]} 32. Rb4 {[%clk 0:02:20]}  Ng6 {[%clk 0:01:20]} 33. Kf2 {[%clk 0:02:19]}  Ra2+ {[%clk 0:01:19]} 34. Be2 {[%clk 0:02:17]}  Ne5 {[%clk 0:01:19]} 35. Ke1 {[%clk 0:02:16]}  g4 {[%clk 0:01:14]} 36. Bc4 {[%clk 0:01:36]}  Rxg2 {[%clk 0:00:56]} 37. a5 {[%clk 0:01:35]}  Nxc4 {[%clk 0:00:53]} 38. Rxc4 {[%clk 0:01:35]}  Ra2 {[%clk 0:00:52]} 39. Rc6 {[%clk 0:01:30]}  g3 {[%clk 0:00:52]} 40. hxg3 {[%clk 0:01:29]}  fxg3 {[%clk 0:00:52]} 41. Rxd6 {[%clk 0:01:29]}  Ra1+ {[%clk 0:00:51]} 42. Ke2 {[%clk 0:01:27]}  g2 {[%clk 0:00:51]} 43. Rf6+ {[%clk 0:01:24]}  Kg7 {[%clk 0:00:42]} 0-1


[Site "https://www.chess.com"]

[Event "Titled Tuesday Blitz April 12 Early 2022"]
[White "Ladan, Nicholas"]
[Black "Gabdrakhmanov, Azat"]
[WhiteFideId "30918855"]
[BlackFideId "34189197"]
[WhiteElo "2167"]
[BlackElo "2279"]
[Result "0-1"]
[Round "01"]
[TimeControl "180+1"]
[Date "2022.04.13"]
[WhiteClock "0:00:13"]
[BlackClock "0:00:16"]

1. d4 {[%clk 0:02:59]}  Nf6 {[%clk 0:02:59]} 2. Bf4 {[%clk 0:02:59]}  g6 {[%clk 0:02:59]} 3. e3 {[%clk 0:02:58]}  Bg7 {[%clk 0:02:59]} 4. Nf3 {[%clk 0:02:57]}  d6 {[%clk 0:02:59]} 5. h3 {[%clk 0:02:57]}  O-O {[%clk 0:02:59]} 6. Be2 {[%clk 0:02:58]}  c5 {[%clk 0:02:59]} 7. O-O {[%clk 0:02:56]}  b6 {[%clk 0:02:59]} 8. a4 {[%clk 0:02:55]}  Bb7 {[%clk 0:02:59]} 9. c3 {[%clk 0:02:54]}  a6 {[%clk 0:02:56]} 10. Nbd2 {[%clk 0:02:53]}  Nbd7 {[%clk 0:02:56]} 11. Qb3 {[%clk 0:02:47]}  Ne4 {[%clk 0:02:48]} 12. Nxe4 {[%clk 0:02:44]}  Bxe4 {[%clk 0:02:49]} 13. Nd2 {[%clk 0:02:43]}  Bb7 {[%clk 0:02:42]} 14. Bf3 {[%clk 0:02:28]}  Qc7 {[%clk 0:02:39]} 15. Rfc1 {[%clk 0:02:12]}  Rfc8 {[%clk 0:02:37]} 16. Bd5 {[%clk 0:02:06]}  Bxd5 {[%clk 0:02:34]} 17. Qxd5 {[%clk 0:02:05]}  Nf6 {[%clk 0:02:34]} 18. Qf3 {[%clk 0:02:03]}  Rab8 {[%clk 0:02:32]} 19. g4 {[%clk 0:01:55]}  b5 {[%clk 0:02:30]} 20. axb5 {[%clk 0:01:53]}  axb5 {[%clk 0:02:31]} 21. Kg2 {[%clk 0:01:52]}  Qb6 {[%clk 0:02:14]} 22. Ra2 {[%clk 0:01:47]}  cxd4 {[%clk 0:02:10]} 23. exd4 {[%clk 0:01:46]}  b4 {[%clk 0:02:10]} 24. Rca1 {[%clk 0:01:40]}  bxc3 {[%clk 0:02:09]} 25. bxc3 {[%clk 0:01:41]}  h5 {[%clk 0:01:51]} 26. g5 {[%clk 0:01:37]}  Nd7 {[%clk 0:01:50]} 27. Ra7 {[%clk 0:01:33]}  Rd8 {[%clk 0:01:48]} 28. Nc4 {[%clk 0:01:26]}  Qb5 {[%clk 0:01:39]} 29. Ne3 {[%clk 0:01:20]}  e5 {[%clk 0:01:38]} 30. Bg3 {[%clk 0:01:11]}  exd4 {[%clk 0:01:32]} 31. cxd4 {[%clk 0:01:12]}  Qxg5 {[%clk 0:01:30]} 32. R1a5 {[%clk 0:01:06]}  Qf6 {[%clk 0:01:09]} 33. Qxf6 {[%clk 0:00:59]}  Nxf6 {[%clk 0:01:08]} 34. d5 {[%clk 0:00:58]}  Ne4 {[%clk 0:01:07]} 35. Bh2 {[%clk 0:00:56]}  Rb2 {[%clk 0:01:06]} 36. Ra2 {[%clk 0:00:54]}  Rdb8 {[%clk 0:01:00]} 37. Kf3 {[%clk 0:00:54]}  Nd2+ {[%clk 0:00:57]} 38. Kg2 {[%clk 0:00:52]}  Bd4 {[%clk 0:00:55]} 39. Nd1 {[%clk 0:00:46]}  Rb1 {[%clk 0:00:41]} 40. Rxd2 {[%clk 0:00:43]}  Bxa7 {[%clk 0:00:40]} 41. Bxd6 {[%clk 0:00:41]}  Rd8 {[%clk 0:00:37]} 42. Be5 {[%clk 0:00:39]}  Bb8 {[%clk 0:00:36]} 43. d6 {[%clk 0:00:36]}  Rb5 {[%clk 0:00:32]} 44. f4 {[%clk 0:00:36]}  f6 {[%clk 0:00:31]} 45. Bxf6 {[%clk 0:00:34]}  Rxd6 {[%clk 0:00:31]} 46. Rxd6 {[%clk 0:00:30]}  Bxd6 {[%clk 0:00:32]} 47. Bg5 {[%clk 0:00:29]}  Rb3 {[%clk 0:00:28]} 48. Nf2 {[%clk 0:00:28]}  Re3 {[%clk 0:00:27]} 49. Nd1 {[%clk 0:00:23]}  Re1 {[%clk 0:00:23]} 50. Nc3 {[%clk 0:00:22]}  Kf7 {[%clk 0:00:23]} 51. Kf3 {[%clk 0:00:21]}  Ra1 {[%clk 0:00:23]} 52. Ne4 {[%clk 0:00:21]}  Ra3+ {[%clk 0:00:22]} 53. Kf2 {[%clk 0:00:21]}  Be7 {[%clk 0:00:23]} 54. Bh6 {[%clk 0:00:17]}  Rxh3 {[%clk 0:00:20]} 55. Kg2 {[%clk 0:00:14]}  Ra3 {[%clk 0:00:20]} 56. Kf2 {[%clk 0:00:14]}  Ra4 {[%clk 0:00:20]} 57. Kf3 {[%clk 0:00:14]}  Ra3+ {[%clk 0:00:21]} 58. Kf2 {[%clk 0:00:14]}  Bf6 {[%clk 0:00:21]} 59. Ng3 {[%clk 0:00:14]}  Bd4+ {[%clk 0:00:20]} 60. Kg2 {[%clk 0:00:14]}  Ke6 {[%clk 0:00:20]} 61. Ne4 {[%clk 0:00:12]}  Re3 {[%clk 0:00:19]} 62. Nf2 {[%clk 0:00:12]}  Kf5 {[%clk 0:00:19]} 63. Nh3 {[%clk 0:00:12]}  Re2+ {[%clk 0:00:19]} 64. Kf1 {[%clk 0:00:12]}  Re3 {[%clk 0:00:19]} 65. Kg2 {[%clk 0:00:12]}  Ra3 {[%clk 0:00:18]} 66. Ng5 {[%clk 0:00:11]}  Ra2+ {[%clk 0:00:18]} 67. Kf3 {[%clk 0:00:11]}  Ra3+ {[%clk 0:00:18]} 68. Kg2 {[%clk 0:00:12]}  Kxf4 {[%clk 0:00:18]} 69. Nf3+ {[%clk 0:00:11]}  Ke4 {[%clk 0:00:17]} 70. Nd2+ {[%clk 0:00:10]}  Kd5 {[%clk 0:00:17]} 71. Nf3 {[%clk 0:00:11]}  Bf6 {[%clk 0:00:16]} 72. Nd2 {[%clk 0:00:11]}  Ra1 {[%clk 0:00:16]} 73. Kf3 {[%clk 0:00:11]}  g5 {[%clk 0:00:15]} 74. Ne4 {[%clk 0:00:11]}  g4+ {[%clk 0:00:16]} 75. Kf4 {[%clk 0:00:11]}  Be5+ {[%clk 0:00:16]} 76. Kf5 {[%clk 0:00:11]}  Rf1+ {[%clk 0:00:15]} 77. Kg6 {[%clk 0:00:11]}  Kxe4 {[%clk 0:00:16]} 78. Kxh5 {[%clk 0:00:12]}  g3 {[%clk 0:00:16]} 79. Be3 {[%clk 0:00:11]}  g2 {[%clk 0:00:16]} 80. Kh4 {[%clk 0:00:10]}  Kxe3 {[%clk 0:00:16]} 81. Kh3 {[%clk 0:00:10]}  g1=Q {[%clk 0:00:16]} 82. Kh4 {[%clk 0:00:11]}  Rf4+ {[%clk 0:00:16]} 83. Kh3 {[%clk 0:00:11]}  Rh4+ {[%clk 0:00:16]} 84. Kxh4 {[%clk 0:00:11]}  Bf6+ {[%clk 0:00:16]} 85. Kh3 {[%clk 0:00:12]}  Qg5 {[%clk 0:00:15]} 86. Kh2 {[%clk 0:00:13]}  Kf3 {[%clk 0:00:15]} 87. Kh3 {[%clk 0:00:13]}  Qg3# {[%clk 0:00:16]} 0-1


[Site "https://www.chess.com"]

[Event "Titled Tuesday Blitz April 12 Early 2022"]
[White "Lagumina, Giulio"]
[Black "Hua, Lefong"]
[WhiteFideId "800619"]
[BlackFideId "2602253"]
[WhiteElo "2277"]
[BlackElo "2583"]
[Result "0-1"]
[Round "01"]
[TimeControl "180+1"]
[Date "2022.04.13"]
[WhiteClock "0:00:10"]
[BlackClock "0:00:19"]

1. e4 {[%clk 0:02:54]}  c5 {[%clk 0:02:59]} 2. Nf3 {[%clk 0:02:53]}  g6 {[%clk 0:02:59]} 3. c4 {[%clk 0:02:52]}  Bg7 {[%clk 0:02:59]} 4. d4 {[%clk 0:02:52]}  cxd4 {[%clk 0:03:00]} 5. Nxd4 {[%clk 0:02:52]}  Nc6 {[%clk 0:03:01]} 6. Be3 {[%clk 0:02:51]}  Nf6 {[%clk 0:03:00]} 7. Nc3 {[%clk 0:02:51]}  Ng4 {[%clk 0:03:00]} 8. Qxg4 {[%clk 0:02:50]}  Nxd4 {[%clk 0:03:00]} 9. Qd1 {[%clk 0:02:49]}  e5 {[%clk 0:03:00]} 10. Bd3 {[%clk 0:02:46]}  O-O {[%clk 0:03:00]} 11. O-O {[%clk 0:02:46]}  d6 {[%clk 0:03:00]} 12. Nb5 {[%clk 0:02:40]}  Nxb5 {[%clk 0:02:57]} 13. cxb5 {[%clk 0:02:40]}  Be6 {[%clk 0:02:51]} 14. Qd2 {[%clk 0:02:19]}  d5 {[%clk 0:02:49]} 15. exd5 {[%clk 0:02:19]}  Qxd5 {[%clk 0:02:49]} 16. Rfd1 {[%clk 0:02:16]}  Rfd8 {[%clk 0:02:45]} 17. Be2 {[%clk 0:02:15]}  Qxd2 {[%clk 0:02:33]} 18. Rxd2 {[%clk 0:02:15]}  e4 {[%clk 0:02:33]} 19. Rxd8+ {[%clk 0:02:01]}  Rxd8 {[%clk 0:02:32]} 20. Bxa7 {[%clk 0:01:54]}  Bxb2 {[%clk 0:02:28]} 21. Rb1 {[%clk 0:01:53]}  Rd2 {[%clk 0:02:27]} 22. Bf1 {[%clk 0:01:46]}  Bxa2 {[%clk 0:02:24]} 23. Re1 {[%clk 0:01:44]}  f5 {[%clk 0:02:21]} 24. f3 {[%clk 0:01:43]}  Bd5 {[%clk 0:02:14]} 25. Re2 {[%clk 0:01:40]}  Rxe2 {[%clk 0:02:08]} 26. Bxe2 {[%clk 0:01:40]}  Kf7 {[%clk 0:02:06]} 27. fxe4 {[%clk 0:01:37]}  fxe4 {[%clk 0:02:02]} 28. Kf2 {[%clk 0:01:36]}  Be5 {[%clk 0:01:59]} 29. g3 {[%clk 0:01:36]}  Ke6 {[%clk 0:01:57]} 30. Ke3 {[%clk 0:01:35]}  Bg7 {[%clk 0:01:53]} 31. Bc5 {[%clk 0:01:19]}  h5 {[%clk 0:01:40]} 32. g4 {[%clk 0:01:16]}  Bh6+ {[%clk 0:01:32]} 33. Kd4 {[%clk 0:01:15]}  Bg7+ {[%clk 0:01:28]} 34. Ke3 {[%clk 0:01:14]}  h4 {[%clk 0:01:11]} 35. g5 {[%clk 0:01:11]}  Kf5 {[%clk 0:01:09]} 36. Be7 {[%clk 0:01:02]}  Bb2 {[%clk 0:00:56]} 37. Bd1 {[%clk 0:00:26]}  Ke6 {[%clk 0:00:37]} 38. Bb4 {[%clk 0:00:17]}  Ke5 {[%clk 0:00:28]} 39. Bg4 {[%clk 0:00:13]}  Bc1+ {[%clk 0:00:27]} 40. Ke2 {[%clk 0:00:13]}  Bc4+ {[%clk 0:00:26]} 41. Kd1 {[%clk 0:00:12]}  Bxg5 {[%clk 0:00:26]} 42. b6 {[%clk 0:00:10]}  Ba6 {[%clk 0:00:19]} 0-1


[Site "https://www.chess.com"]

[Event "Titled Tuesday Blitz April 12 Early 2022"]
[White "Lashkin, Jegor"]
[Black "Odegov, Artem"]
[WhiteFideId "13907808"]
[BlackFideId "34183644"]
[WhiteElo "2837"]
[BlackElo "2454"]
[Result "1-0"]
[Round "01"]
[TimeControl "180+1"]
[Date "2022.04.13"]
[WhiteClock "0:00:06"]
[BlackClock "0:00:01"]

1. Nf3 {[%clk 0:03:00]}  Nf6 {[%clk 0:02:57]} 2. b3 {[%clk 0:03:00]}  c5 {[%clk 0:02:51]} 3. Bb2 {[%clk 0:02:59]}  d6 {[%clk 0:02:51]} 4. g3 {[%clk 0:02:45]}  e5 {[%clk 0:02:50]} 5. d3 {[%clk 0:02:45]}  Nc6 {[%clk 0:02:50]} 6. Bg2 {[%clk 0:02:44]}  Be7 {[%clk 0:02:50]} 7. c4 {[%clk 0:02:44]}  O-O {[%clk 0:02:51]} 8. O-O {[%clk 0:02:45]}  Bg4 {[%clk 0:02:50]} 9. h3 {[%clk 0:02:44]}  Bh5 {[%clk 0:02:49]} 10. Nc3 {[%clk 0:02:42]}  Qd7 {[%clk 0:02:49]} 11. Ne1 {[%clk 0:02:35]}  Nd4 {[%clk 0:02:44]} 12. Qd2 {[%clk 0:02:34]}  Rae8 {[%clk 0:02:09]} 13. e3 {[%clk 0:02:34]}  Nc6 {[%clk 0:02:09]} 14. Nc2 {[%clk 0:02:11]}  Bd8 {[%clk 0:02:08]} 15. g4 {[%clk 0:02:03]}  Bg6 {[%clk 0:01:32]} 16. f4 {[%clk 0:02:03]}  exf4 {[%clk 0:01:33]} 17. exf4 {[%clk 0:02:03]}  Nxg4 {[%clk 0:01:27]} 18. hxg4 {[%clk 0:02:01]}  Qxg4 {[%clk 0:01:28]} 19. Ne3 {[%clk 0:01:37]}  Qg3 {[%clk 0:01:07]} 20. Rf3 {[%clk 0:01:36]}  Qh4 {[%clk 0:01:05]} 21. Ncd5 {[%clk 0:01:34]}  Nd4 {[%clk 0:00:49]} 22. Rh3 {[%clk 0:00:59]}  Qxh3 {[%clk 0:00:45]} 23. Bxh3 {[%clk 0:01:00]}  Nf3+ {[%clk 0:00:45]} 24. Kf2 {[%clk 0:01:00]}  Nxd2 {[%clk 0:00:46]} 25. Ke2 {[%clk 0:01:01]}  Ba5 {[%clk 0:00:25]} 26. b4 {[%clk 0:00:43]}  Nxc4 {[%clk 0:00:05]} 27. dxc4 {[%clk 0:00:41]}  Bxb4 {[%clk 0:00:06]} 28. Rg1 {[%clk 0:00:35]}  f6 {[%clk 0:00:03]} 29. Bd7 {[%clk 0:00:28]}  Rd8 {[%clk 0:00:02]} 30. Be6+ {[%clk 0:00:28]}  Kh8 {[%clk 0:00:03]} 31. f5 {[%clk 0:00:23]}  Bf7 {[%clk 0:00:03]} 32. Nf4 {[%clk 0:00:15]}  Rde8 {[%clk 0:00:02]} 33. Kf3 {[%clk 0:00:14]}  Bd2 {[%clk 0:00:02]} 34. Ned5 {[%clk 0:00:14]}  Bxf4 {[%clk 0:00:02]} 35. Nxf4 {[%clk 0:00:14]}  Re7 {[%clk 0:00:02]} 36. Rd1 {[%clk 0:00:13]}  Bxe6 {[%clk 0:00:02]} 37. Nxe6 {[%clk 0:00:12]}  Rfe8 {[%clk 0:00:02]} 38. Rxd6 {[%clk 0:00:12]}  Kg8 {[%clk 0:00:03]} 39. Ke4 {[%clk 0:00:12]}  g6 {[%clk 0:00:03]} 40. Bxf6 {[%clk 0:00:11]}  gxf5+ {[%clk 0:00:03]} 41. Kxf5 {[%clk 0:00:12]}  Rf7 {[%clk 0:00:04]} 42. Rd2 {[%clk 0:00:10]}  h6 {[%clk 0:00:03]} 43. Rd6 {[%clk 0:00:08]}  a6 {[%clk 0:00:02]} 44. Kg6 {[%clk 0:00:07]}  Rc8 {[%clk 0:00:02]} 45. Ng7 {[%clk 0:00:07]}  Rcf8 {[%clk 0:00:02]} 46. Nf5 {[%clk 0:00:06]}  h5 {[%clk 0:00:01]} 47. Nh6# {[%clk 0:00:06]} 1-0


[Site "https://www.chess.com"]